fUST/lending_fUST_20250828
["ID","MTS","AMOUNT","RATE_DAILY","PERIOD"]
[381882787,1756389039225,-1022.61,0.00019178,2]
[381882788,1756389039234,-480.0,0.00019178,2]
[381882789,1756389039243,-480.0,0.00019178,2]
[381882790,1756389039254,-480.0,0.00019178,2]
[381882791,1756389039263,-480.0,0.00019178,2]
[381882792,1756389039276,-480.0,0.00019178,2]
[381882793,1756389039285,-745.13,0.00019178,2]
[381882794,1756389039294,-678.37,0.00019178,2]
[381882795,1756389039303,-480.0,0.00019178,2]
[381882796,1756389039312,-562.74,0.00019178,2]
[381882797,1756389039322,-480.0,0.00019178,2]
[381882798,1756389039332,-480.0,0.00019178,2]
[381882799,1756389039341,-480.0,0.00019178,2]
[381882800,1756389039349,-480.0,0.00019178,2]
[381882801,1756389039357,-2286.71,0.00019178,2]
[381882802,1756389039366,-480.0,0.00019178,2]
[381882804,1756389039375,-480.0,0.00019178,2]
[381882805,1756389039383,-501.17,0.00019178,2]
[381882806,1756389039392,-766.32,0.00019178,2]
[381882807,1756389039400,-2415.01,0.00019178,2]
[381882809,1756389039409,-480.0,0.00019178,2]
[381882810,1756389039418,-1968.31,0.00019178,2]
[381882812,1756389039427,-480.0,0.00019178,2]
[381882813,1756389039436,-1466.66,0.00019178,2]
[381882815,1756389039445,-1301.59,0.00019178,2]
[381882816,1756389039454,-752.25,0.00019178,2]
[381882817,1756389039462,-151.0,0.00019178,2]
[381882818,1756389039470,-151.0,0.00019178,2]
[381882819,1756389039478,-480.0,0.00019178,2]
[381882820,1756389039487,-1040.68,0.00019178,2]
[381882821,1756389039494,-480.0,0.00019178,2]
[381882822,1756389039503,-154.65837251,0.00019178,2]
[381882823,1756389039511,-480.0,0.00019178,2]
[381882824,1756389039523,-480.0,0.00019178,2]
[381882825,1756389039533,-1595.62,0.00019178,2]
[381882826,1756389039542,-480.0,0.00019178,2]
[381882827,1756389039551,-2468.12,0.00019178,2]
[381882828,1756389039560,-516.3853136,0.00019178,2]
[381882829,1756389039569,-480.0,0.00019178,2]
[381882830,1756389039578,-480.0,0.00019178,2]
[381882831,1756389039588,-480.0,0.00019178,2]
[381882832,1756389039597,-1770.52,0.00019178,2]
[381882833,1756389039607,-480.0,0.00019178,2]
[381882834,1756389039617,-480.0,0.00019178,2]
[381882835,1756389039626,-1195.83,0.00019178,2]
[381882836,1756389039636,-480.0,0.00019178,2]
[381882837,1756389039645,-480.0,0.00019178,2]
[381882839,1756389039655,-480.0,0.00019178,2]
[381882841,1756389039664,-1281.94,0.00019178,2]
[381882842,1756389039673,-480.0,0.00019178,2]
[381882843,1756389039683,-2670.21,0.00019178,2]
[381882844,1756389039692,-480.0,0.00019178,2]
[381882845,1756389039702,-480.0,0.00019178,2]
[381882846,1756389039711,-480.0,0.00019178,2]
[381882847,1756389039720,-480.0,0.00019178,2]
[381882848,1756389039731,-480.0,0.00019178,2]
[381882849,1756389039740,-494.03,0.00019178,2]
[381882850,1756389039750,-480.0,0.00019178,2]
[381882851,1756389039759,-151.43634913,0.00019178,2]
[381882853,1756389039773,-1350.74,0.00019178,2]
[381882854,1756389039782,-480.0,0.00019178,2]
[381882855,1756389039795,-533.3,0.00019178,2]
[381882856,1756389039804,-151.4981627,0.00019178,2]
[381882857,1756389039814,-480.0,0.00019178,2]
[381882858,1756389039824,-480.98841453,0.00019178,2]
[381882859,1756389039834,-480.0,0.00019178,2]
[381882860,1756389039845,-480.0,0.00019178,2]
[381882861,1756389039854,-499.97,0.00019178,2]
[381882862,1756389039863,-480.0,0.00019178,2]
[381882863,1756389039873,-480.0,0.00019178,2]
[381882864,1756389039885,-480.0,0.00019178,2]
[381882866,1756389039895,-480.0,0.00019178,2]
[381882868,1756389039906,-607.19,0.00019178,2]
[381882870,1756389039915,-480.0,0.00019178,2]
[381882871,1756389039926,-480.0,0.00019178,2]
[381882872,1756389039935,-3126.6,0.00019178,2]
[381882874,1756389039944,-480.0,0.00019178,2]
[381882875,1756389039953,-480.0,0.00019178,2]
[381882876,1756389039963,-480.0,0.00019178,2]
[381882877,1756389039972,-480.0,0.00019178,2]
[381882878,1756389039982,-480.0,0.00019178,2]
[381882879,1756389039990,-480.0,0.00019178,2]
[381882880,1756389039999,-480.0,0.00019178,2]
[381882881,1756389040009,-480.0,0.00019178,2]
[381882882,1756389040018,-2968.4,0.00019178,2]
[381882883,1756389040032,-480.0,0.00019178,2]
[381882884,1756389040041,-2384.02,0.00019244,2]
[381882885,1756389040051,-63852.7581507,0.0001926,2]
[381882886,1756389040061,-17164.4267,0.0001926,2]
[381882887,1756389040070,-151.0,0.0001926,2]
[381882888,1756389040079,-151.0,0.0001926,2]
[381882889,1756389040088,-151.0,0.0001926,2]
[381882890,1756389040097,-151.0,0.0001926,2]
[381882891,1756389040106,-151.0,0.0001926,2]
[381882892,1756389040115,-151.0,0.0001926,2]
[381882893,1756389040124,-151.0,0.0001926,2]
[381882894,1756389040133,-151.0,0.0001926,2]
[381882895,1756389040142,-151.0,0.0001926,2]
[381882896,1756389040152,-151.0,0.0001926,2]
[381882897,1756389040161,-151.0,0.0001926,2]
[381882898,1756389040171,-151.0,0.0001926,2]
[381882899,1756389040180,-151.0,0.0001926,2]
[381882900,1756389040190,-151.0,0.0001926,2]
[381882901,1756389040199,-151.0,0.0001926,2]
[381882902,1756389040208,-151.0,0.0001926,2]
[381882903,1756389040217,-151.0,0.0001926,2]
[381882904,1756389040228,-151.0,0.0001926,2]
[381882905,1756389040237,-151.0,0.0001926,2]
[381882906,1756389040246,-216.063153,0.0001926,2]
[381882907,1756389040255,-151.0,0.0001926,2]
[381882908,1756389040264,-151.0,0.0001926,2]
[381882909,1756389040281,-151.0,0.0001926,2]
[381882910,1756389040291,-151.0,0.0001926,2]
[381882911,1756389040299,-205.01652649,0.0001926,2]
[381882912,1756389040309,-151.0,0.0001926,2]
[381882913,1756389040318,-151.0,0.0001926,2]
[381882914,1756389040327,-151.0,0.0001926,2]
[381882915,1756389040336,-151.0,0.0001926,2]
[381882916,1756389040345,-151.0,0.0001926,2]
[381882917,1756389040354,-151.0,0.0001926,2]
[381882918,1756389040364,-952.87707268,0.00019284,2]
[381882919,1756389040372,-153.0,0.00019291,2]
[381882920,1756389040381,-453.9708481,0.00019291,2]
[381882921,1756389040391,-294.545536,0.00019291,2]
[381882922,1756389040400,-153.0,0.00019291,2]
[381882923,1756389040410,-153.0,0.00019291,2]
[381882924,1756389040420,-153.0,0.00019291,2]
[381882925,1756389040430,-153.0,0.00019291,2]
[381882926,1756389040439,-153.0,0.00019291,2]
[381882927,1756389040449,-151.0,0.000193,2]
[381882928,1756389040458,-6000.0,0.00019388,2]
[381882929,1756389040467,-238.0,0.00019399,2]
[381882930,1756389040476,-151.0,0.000194,2]
[381882931,1756389040486,-500.0,0.00019419,2]
[381882932,1756389040494,-151.43310379,0.00019452,2]
[381882933,1756389040504,-151.0,0.00019452,2]
[381882934,1756389040513,-933.0,0.00019452,2]
[381882935,1756389040529,-151.0,0.00019452,2]
[381882936,1756389040539,-3026.615712,0.00019452,2]
[381882937,1756389040548,-463.81764555,0.00019452,2]
[381882938,1756389040556,-480.0,0.00019452,2]
[381882939,1756389040565,-480.0,0.00019452,2]
[381882940,1756389040573,-480.0,0.00019452,2]
[381882941,1756389040582,-480.0,0.00019452,2]
[381882942,1756389040591,-480.0,0.00019452,2]
[381882943,1756389040599,-480.0,0.00019452,2]
[381882944,1756389040607,-480.0,0.00019452,2]
[381882945,1756389040615,-494.34,0.00019452,2]
[381882946,1756389040624,-480.0,0.00019452,2]
[381882947,1756389040632,-480.0,0.00019452,2]
[381882948,1756389040641,-585.05315856,0.00019452,2]
[381882949,1756389040650,-480.0,0.00019452,2]
[381882950,1756389040660,-480.0,0.00019452,2]
[381882951,1756389040667,-360.34831367,0.00019452,2]
[381882952,1756389040675,-480.0,0.00019452,2]
[381882953,1756389040683,-480.0,0.00019452,2]
[381882954,1756389040691,-480.0,0.00019452,2]
[381882955,1756389040697,-480.0,0.00019452,2]
[381882956,1756389040704,-480.0,0.00019452,2]
[381882957,1756389040710,-480.0,0.00019452,2]
[381882958,1756389040717,-480.0,0.00019452,2]
[381882959,1756389040725,-480.0,0.00019452,2]
[381882960,1756389040733,-480.0,0.00019452,2]
[381882961,1756389040742,-480.0,0.00019452,2]
[381882962,1756389040752,-480.0,0.00019452,2]
[381882963,1756389040763,-480.0,0.00019452,2]
[381882964,1756389040783,-480.0,0.00019452,2]
[381882965,1756389040797,-480.0,0.00019452,2]
[381882966,1756389040809,-480.0,0.00019452,2]
[381882967,1756389040820,-530.29042261,0.00019452,2]
[381882968,1756389040830,-480.0,0.00019452,2]
[381882969,1756389040841,-480.0,0.00019452,2]
[381882970,1756389040852,-480.0,0.00019452,2]
[381882971,1756389040863,-480.0,0.00019452,2]
[381882972,1756389040873,-480.0,0.00019452,2]
[381882973,1756389040884,-480.0,0.00019452,2]
[381882974,1756389040895,-645.6,0.00019452,2]
[381882975,1756389040906,-480.0,0.00019452,2]
[381882976,1756389040917,-480.0,0.00019452,2]
[381882977,1756389040928,-1380.55,0.00019452,2]
[381882978,1756389040939,-480.0,0.00019452,2]
[381882979,1756389040949,-480.0,0.00019452,2]
[381882980,1756389040961,-480.0,0.00019452,2]
[381882981,1756389040972,-480.0,0.00019452,2]
[381882982,1756389040983,-179.31642,0.00019452,2]
[381882983,1756389040993,-480.0,0.00019452,2]
[381882984,1756389041004,-480.0,0.00019452,2]
[381882985,1756389041014,-151.0,0.00019452,2]
[381882986,1756389041030,-480.0,0.00019452,2]
[381882987,1756389041042,-480.0,0.00019452,2]
[381882988,1756389041053,-480.0,0.00019452,2]
[381882989,1756389041063,-799.95,0.00019452,2]
[381882990,1756389041074,-480.0,0.00019452,2]
[381882991,1756389041084,-480.0,0.00019452,2]
[381882992,1756389041094,-480.0,0.00019452,2]
[381882993,1756389041105,-480.0,0.00019452,2]
[381882994,1756389041115,-480.0,0.00019452,2]
[381882995,1756389041125,-480.0,0.00019452,2]
[381882996,1756389041135,-211.77244617,0.00019452,2]
[381882997,1756389041145,-480.0,0.00019452,2]
[381882998,1756389041155,-480.0,0.00019452,2]
[381882999,1756389041167,-480.0,0.00019452,2]
[381883000,1756389041177,-480.0,0.00019452,2]
[381883001,1756389041188,-480.0,0.00019452,2]
[381883002,1756389041198,-480.0,0.00019452,2]
[381883003,1756389041209,-480.0,0.00019452,2]
[381883004,1756389041223,-151.0,0.00019452,2]
[381883005,1756389041235,-151.0,0.00019452,2]
[381883006,1756389041247,-480.0,0.00019452,2]
[381883007,1756389041259,-480.0,0.00019452,2]
[381883008,1756389041273,-480.0,0.00019452,2]
[381883009,1756389041300,-480.0,0.00019452,2]
[381883010,1756389041311,-480.0,0.00019452,2]
[381883011,1756389041322,-480.0,0.00019452,2]
[381883012,1756389041333,-286.696422,0.00019452,2]
[381883013,1756389041345,-480.0,0.00019452,2]
[381883014,1756389041360,-480.0,0.00019452,2]
[381883015,1756389041373,-480.0,0.00019452,2]
[381883016,1756389041385,-480.0,0.00019452,2]
[381883017,1756389041396,-480.0,0.00019452,2]
[381883018,1756389041407,-480.0,0.00019452,2]
[381883019,1756389041418,-480.0,0.00019452,2]
[381883020,1756389041431,-516.82,0.00019452,2]
[381883021,1756389041443,-480.0,0.00019452,2]
[381883022,1756389041457,-480.0,0.00019452,2]
[381883023,1756389041470,-449.10898668,0.00019452,2]
[381883024,1756389041481,-480.0,0.00019452,2]
[381883025,1756389041493,-151.0,0.00019452,2]
[381883026,1756389041505,-480.0,0.00019452,2]
[381883027,1756389041517,-488.26,0.00019452,2]
[381883028,1756389041536,-480.0,0.00019452,2]
[381883029,1756389041548,-151.0,0.00019452,2]
[381883030,1756389041559,-731.01,0.00019452,2]
[381883031,1756389041572,-480.0,0.00019452,2]
[381883032,1756389041584,-151.0,0.00019452,2]
[381883033,1756389041596,-151.0,0.00019452,2]
[381883034,1756389041608,-480.0,0.00019452,2]
[381883035,1756389041620,-480.0,0.00019452,2]
[381883036,1756389041631,-480.0,0.00019452,2]
[381883037,1756389041642,-480.0,0.00019452,2]
[381883038,1756389041654,-527.38,0.00019452,2]
[381883039,1756389041668,-151.0,0.00019452,2]
[381883040,1756389041679,-480.0,0.00019452,2]
[381883041,1756389041690,-480.0,0.00019452,2]
[381883042,1756389041701,-480.0,0.00019452,2]
[381883043,1756389041712,-480.0,0.00019452,2]
[381883044,1756389041724,-480.0,0.00019452,2]
[381883045,1756389041735,-592.21,0.00019452,2]
[381883046,1756389041746,-480.0,0.00019452,2]
[381883047,1756389041757,-480.0,0.00019452,2]
[381883048,1756389041775,-949.92,0.00019452,2]
[381883049,1756389041787,-480.0,0.00019452,2]
[381883050,1756389041803,-480.0,0.00019452,2]
[381883051,1756389041815,-549.94,0.00019452,2]
[381883052,1756389041826,-563.71,0.00019452,2]
[381883053,1756389041838,-480.0,0.00019452,2]
[381883054,1756389041849,-480.0,0.00019452,2]
[381883055,1756389041859,-480.0,0.00019452,2]
[381883056,1756389041872,-480.0,0.00019452,2]
[381883057,1756389041883,-480.0,0.00019452,2]
[381883058,1756389041894,-480.0,0.00019452,2]
[381883059,1756389041904,-480.0,0.00019452,2]
[381883060,1756389041914,-896.52,0.00019452,2]
[381883061,1756389041924,-151.0,0.00019452,2]
[381883062,1756389041934,-480.0,0.00019452,2]
[381883063,1756389041944,-480.0,0.00019452,2]
[381883064,1756389041954,-480.0,0.00019452,2]
[381883065,1756389041964,-508.89842779,0.00019452,2]
[381883066,1756389041973,-480.0,0.00019452,2]
[381883067,1756389041983,-480.0,0.00019452,2]
[381883068,1756389041992,-480.0,0.00019452,2]
[381883069,1756389042002,-480.0,0.00019452,2]
[381883070,1756389042011,-547.67581536,0.00019452,2]
[381883071,1756389042024,-1291.1,0.00019452,2]
[381883072,1756389042034,-480.0,0.00019452,2]
[381883073,1756389042043,-480.0,0.00019452,2]
[381883074,1756389042053,-480.0,0.00019452,2]
[381883075,1756389042063,-480.0,0.00019452,2]
[381883076,1756389042073,-480.0,0.00019452,2]
[381883077,1756389042083,-480.0,0.00019452,2]
[381883078,1756389042092,-480.0,0.00019452,2]
[381883079,1756389042102,-480.0,0.00019452,2]
[381883080,1756389042112,-480.0,0.00019452,2]
[381883081,1756389042121,-480.0,0.00019452,2]
[381883082,1756389042131,-151.0,0.00019452,2]
[381883083,1756389042141,-480.0,0.00019452,2]
[381883084,1756389042151,-480.0,0.00019452,2]
[381883085,1756389042161,-480.0,0.00019452,2]
[381883086,1756389042170,-151.0,0.00019452,2]
[381883087,1756389042180,-151.0,0.00019452,2]
[381883088,1756389042189,-480.0,0.00019452,2]
[381883090,1756389042199,-517.4,0.00019452,2]
[381883091,1756389042210,-480.0,0.00019452,2]
[381883092,1756389042219,-480.0,0.00019452,2]
[381883093,1756389042229,-480.0,0.00019452,2]
[381883094,1756389042238,-582.04,0.00019452,2]
[381883095,1756389042250,-494.95,0.00019452,2]
[381883096,1756389042259,-886.17,0.00019452,2]
[381883097,1756389042269,-480.0,0.00019452,2]
[381883098,1756389042282,-151.0,0.00019452,2]
[381883099,1756389042291,-480.0,0.00019452,2]
[381883101,1756389042301,-480.0,0.00019452,2]
[381883102,1756389042311,-1094.28,0.00019452,2]
[381883104,1756389042321,-595.39,0.00019452,2]
[381883106,1756389042330,-1046.89,0.00019452,2]
[381883108,1756389042340,-480.0,0.00019452,2]
[381883110,1756389042350,-480.0,0.00019452,2]
[381883112,1756389042360,-480.0,0.00019452,2]
[381883114,1756389042370,-480.0,0.00019452,2]
[381883116,1756389042380,-151.0,0.00019452,2]
[381883118,1756389042390,-480.0,0.00019452,2]
[381883120,1756389042400,-480.0,0.00019452,2]
[381883122,1756389042410,-651.74,0.00019452,2]
[381883124,1756389042420,-563.3,0.00019452,2]
[381883127,1756389042430,-728.38,0.00019452,2]
[381883128,1756389042440,-480.0,0.00019452,2]
[381883130,1756389042449,-480.0,0.00019452,2]
[381883132,1756389042460,-480.0,0.00019452,2]
[381883134,1756389042470,-4935.14,0.00019452,2]
[381883135,1756389042479,-480.0,0.00019452,2]
[381883136,1756389042489,-631.28,0.00019452,2]
[381883137,1756389042499,-592.12934867,0.00019452,2]
[381883138,1756389042508,-1030.99,0.00019452,2]
[381883139,1756389042518,-607.13,0.00019452,2]
[381883140,1756389042534,-589.51,0.00019452,2]
[381883142,1756389042543,-480.0,0.00019452,2]
[381883143,1756389042553,-175.86202,0.00019452,2]
[381883144,1756389042563,-480.0,0.00019452,2]
[381883145,1756389042573,-480.0,0.00019452,2]
[381883146,1756389042583,-151.0,0.00019452,2]
[381883147,1756389042593,-771.33,0.00019452,2]
[381883148,1756389042602,-480.0,0.00019452,2]
[381883149,1756389042612,-480.0,0.00019452,2]
[381883150,1756389042622,-2153.14,0.00019452,2]
[381883151,1756389042631,-480.0,0.00019452,2]
[381883152,1756389042641,-812.0,0.00019452,2]
[381883153,1756389042651,-1634.72,0.00019452,2]
[381883154,1756389042661,-1576.12,0.00019452,2]
[381883155,1756389042671,-1043.29,0.00019452,2]
[381883156,1756389042681,-480.0,0.00019452,2]
[381883157,1756389042690,-151.0,0.00019452,2]
[381883158,1756389042701,-480.0,0.00019452,2]
[381883159,1756389042711,-181.77173,0.00019452,2]
[381883160,1756389042721,-480.0,0.00019452,2]
[381883161,1756389042731,-480.0,0.00019452,2]
[381883162,1756389042740,-523.68,0.00019452,2]
[381883163,1756389042750,-517.44,0.00019452,2]
[381883165,1756389042760,-480.0,0.00019452,2]
[381883166,1756389042769,-679.71,0.00019452,2]
[381883167,1756389042783,-480.0,0.00019452,2]
[381883168,1756389042795,-480.0,0.00019452,2]
[381883169,1756389042805,-741.83,0.00019452,2]
[381883170,1756389042818,-2578.28,0.00019452,2]
[381883171,1756389042827,-874.67,0.00019452,2]
[381883172,1756389042838,-480.0,0.00019452,2]
[381883173,1756389042848,-4078.64,0.00019452,2]
[381883174,1756389042858,-692.8,0.00019452,2]
[381883175,1756389042870,-480.0,0.00019452,2]
[381883176,1756389042880,-492.07,0.00019452,2]
[381883177,1756389042891,-480.0,0.00019452,2]
[381883178,1756389042901,-635.24,0.00019452,2]
[381883179,1756389042911,-687.55,0.00019452,2]
[381883180,1756389042922,-2020.49,0.00019452,2]
[381883181,1756389042933,-480.0,0.00019452,2]
[381883182,1756389042943,-480.0,0.00019452,2]
[381883183,1756389042953,-168.75659731,0.00019452,2]
[381883184,1756389042964,-600.24,0.00019452,2]
[381883185,1756389042974,-492.67,0.00019452,2]
[381883186,1756389042985,-871.29,0.00019452,2]
[381883187,1756389042997,-151.0,0.00019452,2]
[381883188,1756389043008,-562.27,0.00019452,2]
[381883189,1756389043020,-480.0,0.00019452,2]
[381883190,1756389043039,-480.0,0.00019452,2]
[381883191,1756389043050,-846.48,0.00019452,2]
[381883192,1756389043060,-3291.27,0.00019452,2]
[381883193,1756389043071,-480.0,0.00019452,2]
[381883194,1756389043082,-494.39,0.00019452,2]
[381883195,1756389043092,-480.0,0.00019452,2]
[381883196,1756389043103,-480.0,0.00019452,2]
[381883197,1756389043113,-1432.36,0.00019452,2]
[381883198,1756389043123,-480.0,0.00019452,2]
[381883199,1756389043134,-590.88,0.00019452,2]
[381883200,1756389043144,-3306.46,0.00019452,2]
[381883201,1756389043154,-480.0,0.00019452,2]
[381883202,1756389043164,-1022.61,0.00019452,2]
[381883203,1756389043174,-480.0,0.00019452,2]
[381883204,1756389043185,-480.0,0.00019452,2]
[381883205,1756389043195,-480.0,0.00019452,2]
[381883206,1756389043205,-480.0,0.00019452,2]
[381883207,1756389043215,-480.0,0.00019452,2]
[381883208,1756389043225,-745.13,0.00019452,2]
[381883209,1756389043235,-678.37,0.00019452,2]
[381883210,1756389043245,-480.0,0.00019452,2]
[381883211,1756389043255,-562.74,0.00019452,2]
[381883212,1756389043265,-480.0,0.00019452,2]
[381883213,1756389043279,-480.0,0.00019452,2]
[381883214,1756389043290,-480.0,0.00019452,2]
[381883215,1756389043299,-480.0,0.00019452,2]
[381883216,1756389043309,-2286.71,0.00019452,2]
[381883217,1756389043319,-480.0,0.00019452,2]
[381883218,1756389043328,-480.0,0.00019452,2]
[381883219,1756389043338,-501.17,0.00019452,2]
[381883220,1756389043348,-766.32,0.00019452,2]
[381883221,1756389043357,-2415.01,0.00019452,2]
[381883222,1756389043367,-480.0,0.00019452,2]
[381883223,1756389043377,-1968.31,0.00019452,2]
[381883224,1756389043387,-151.0,0.00019452,2]
[381883225,1756389043397,-1466.66,0.00019452,2]
[381883226,1756389043406,-1301.59,0.00019452,2]
[381883227,1756389043416,-151.0,0.00019452,2]
[381883228,1756389043425,-752.25,0.00019452,2]
[381883229,1756389043435,-151.0,0.00019452,2]
[381883230,1756389043445,-1040.68,0.00019452,2]
[381883231,1756389043454,-480.0,0.00019452,2]
[381883232,1756389043464,-480.0,0.00019452,2]
[381883233,1756389043474,-480.0,0.00019452,2]
[381883234,1756389043483,-1595.62,0.00019452,2]
[381883235,1756389043493,-480.0,0.00019452,2]
[381883236,1756389043503,-2468.12,0.00019452,2]
[381883237,1756389043512,-480.0,0.00019452,2]
[381883238,1756389043527,-480.0,0.00019452,2]
[381883239,1756389043537,-1770.52,0.00019452,2]
[381883240,1756389043546,-480.0,0.00019452,2]
[381883241,1756389043556,-480.0,0.00019452,2]
[381883242,1756389043566,-1195.83,0.00019452,2]
[381883243,1756389043575,-480.0,0.00019452,2]
[381883244,1756389043585,-480.0,0.00019452,2]
[381883245,1756389043594,-1281.94,0.00019452,2]
[381883246,1756389043604,-480.0,0.00019452,2]
[381883247,1756389043613,-2670.21,0.00019452,2]
[381883248,1756389043623,-480.0,0.00019452,2]
[381883249,1756389043632,-480.0,0.00019452,2]
[381883250,1756389043642,-480.0,0.00019452,2]
[381883251,1756389043652,-480.0,0.00019452,2]
[381883252,1756389043662,-480.0,0.00019452,2]
[381883253,1756389043672,-494.03,0.00019452,2]
[381883254,1756389043863,-151.0,0.00019452,2]
[381883255,1756389043882,-1350.74,0.00019452,2]
[381883256,1756389043891,-151.0,0.00019452,2]
[381883257,1756389043901,-533.3,0.00019452,2]
[381883258,1756389043911,-480.0,0.00019452,2]
[381883259,1756389043920,-480.0,0.00019452,2]
[381883260,1756389043930,-480.0,0.00019452,2]
[381883261,1756389043940,-499.97,0.00019452,2]
[381883262,1756389043949,-1765.0,0.00019452,2]
[381883263,1756389043959,-480.0,0.00019452,2]
[381883264,1756389043969,-480.0,0.00019452,2]
[381883265,1756389043979,-480.0,0.00019452,2]
[381883266,1756389043988,-480.0,0.00019452,2]
[381883267,1756389043998,-480.0,0.00019452,2]
[381883268,1756389044007,-151.0,0.00019452,2]
[381883269,1756389044017,-3126.6,0.00019452,2]
[381883270,1756389044030,-480.0,0.00019452,2]
[381883271,1756389044040,-480.0,0.00019452,2]
[381883272,1756389044049,-151.0,0.00019452,2]
[381883273,1756389044058,-480.0,0.00019452,2]
[381883274,1756389044068,-468.88772611,0.00019452,2]
[381883275,1756389044077,-480.0,0.00019452,2]
[381883276,1756389044087,-480.0,0.00019452,2]
[381883277,1756389044097,-154.82,0.00019452,2]
[381883278,1756389044106,-2968.4,0.00019452,2]
[381883279,1756389044115,-8000.0,0.00019462,2]
[381883280,1756389044125,-151.0,0.00019462,2]
[381883281,1756389044135,-151.0,0.00019462,2]
[381883282,1756389044144,-151.0,0.00019462,2]
[381883283,1756389044154,-151.0,0.00019462,2]
[381883284,1756389044164,-186.218424,0.00019462,2]
[381883285,1756389044173,-151.0,0.00019462,2]
[381883286,1756389044182,-151.0,0.00019462,2]
[381883287,1756389044191,-500.0,0.00019473,2]
[381883288,1756389044200,-500.0,0.00019473,2]
[381883289,1756389044210,-500.0,0.00019473,2]
[381883290,1756389044219,-500.0,0.00019473,2]
[381883291,1756389044228,-500.0,0.00019473,2]
[381883292,1756389044237,-500.0,0.00019473,2]
[381883293,1756389044247,-500.0,0.00019473,2]
[381883294,1756389044256,-500.0,0.00019473,2]
[381883295,1756389044267,-500.0,0.00019473,2]
[381883296,1756389044281,-500.0,0.00019473,2]
[381883297,1756389044291,-460.70241166,0.00019473,2]
[381883298,1756389044300,-500.0,0.00019473,2]
[381883299,1756389044309,-500.0,0.00019473,2]
[381883300,1756389044319,-500.0,0.00019473,2]
[381883301,1756389044328,-500.0,0.00019473,2]
[381883302,1756389044337,-500.0,0.00019473,2]
[381883303,1756389044348,-500.0,0.00019473,2]
[381883304,1756389044366,-500.0,0.00019473,2]
[381883305,1756389044377,-500.0,0.00019473,2]
[381883306,1756389044386,-500.0,0.00019473,2]
[381883307,1756389044396,-500.0,0.00019473,2]
[381883308,1756389044405,-500.0,0.00019473,2]
[381883309,1756389044415,-500.0,0.00019473,2]
[381883310,1756389044425,-500.0,0.00019473,2]
[381883311,1756389044434,-500.0,0.00019473,2]
[381883312,1756389044444,-500.0,0.00019473,2]
[381883313,1756389044454,-500.0,0.00019473,2]
[381883314,1756389044463,-952.87707268,0.00019489,2]
[381883315,1756389044473,-300.0,0.00019498,20]
[381883316,1756389044483,-300.0,0.00019498,20]
[381883317,1756389044492,-300.0,0.00019498,20]